bitfinex-derivatives/quotes_SOLF0:USTF0_20241002
["timestamp","ask_amount","ask_price","bid_price","bid_amount"]
[1727898577846,3.5928,139.19,139.15,1.5407]
[1727898578043,48.36532874,139.2,139.15,1.5407]
[1727898578247,44.79,139.22,139.15,1.5407]
[1727898578436,3.5926,139.2,139.15,1.5407]
[1727898578750,44.79,139.22,139.15,1.5407]
[1727898579044,3.5935,139.16,139.15,1.5407]
[1727898581449,44.79,139.16,139.13,0.12502]
[1727898581860,3.594,139.14,139.13,0.12502]
[1727898582652,48.384,139.14,139.13,0.12502]
[1727898583550,3.594,139.14,139.13,0.12502]
[1727898584551,1.2006,139.14,139.13,0.12502]
[1727898584758,44.79,139.16,139.13,0.12502]
[1727898586055,3.594,139.14,139.13,0.12502]
[1727898586942,44.79,139.16,139.13,0.12502]
[1727898587154,4.57152893,139.19,139.13,0.12502]
[1727898587155,1.0,139.19,139.13,0.12502]
[1727898587550,3.5932,139.18,139.13,0.12502]
[1727898587950,0.4988,139.2,139.13,0.12502]
[1727898588149,0.4988,139.2,139.17,3.5931]
[1727898588346,11.54,139.27,139.14,46.3302]
[1727898588751,11.54,139.27,139.15,3.5937]
[1727898588953,3.7082083,139.25,139.14,46.3302]
[1727898589153,0.12502,139.25,139.14,46.3302]
[1727898589459,3.5926,139.2,139.15,3.5937]
[1727898590057,3.74495654,139.25,139.14,46.3302]
[1727898590454,3.592,139.22,139.14,46.3302]
[1727898590661,3.64868331,139.23,139.14,46.3302]
[1727898590959,0.12502,139.25,139.14,46.3302]
[1727898591162,3.592,139.22,139.15,3.5936]
[1727898591356,3.66916538,139.23,139.16,11.54]
[1727898591551,0.12502,139.25,139.16,11.54]
[1727898591754,3.71692845,139.25,139.16,11.54]
[1727898591961,0.12502,139.25,139.16,11.54]
[1727898592456,3.79310738,139.25,139.16,11.54]
[1727898592759,0.12502,139.25,139.16,11.54]
[1727898593161,3.77056666,139.25,139.16,11.54]
[1727898593358,0.12502,139.25,139.16,11.54]
[1727898593669,0.12502,139.25,139.17,1.4942]
[1727898593962,0.12502,139.25,139.18,3.5929]
[1727898594359,3.65954026,139.25,139.19,1.3605]
[1727898595068,3.5924,139.2,139.19,1.3605]
[1727898595959,3.5922,139.22,139.19,1.3605]
[1727898596366,3.73848852,139.25,139.19,1.3605]
[1727898596666,0.12502,139.25,139.19,1.3605]
[1727898597053,3.68746301,139.25,139.19,1.3605]
[1727898597258,0.12502,139.25,139.19,1.3605]
[1727898597964,3.5924,139.2,139.19,1.3605]
[1727898599358,3.5937,139.15,139.14,13.0802]
[1727898600370,3.5937,139.15,139.13,1.44862]
[1727898600371,27.6,139.19,139.13,1.44862]
[1727898600571,27.6,139.14,139.13,0.12502]
[1727898600769,27.6,139.14,139.09,1.001]
[1727898600770,31.12644519,139.14,139.09,1.001]
[1727898600967,3.595,139.1,139.09,1.001]
[1727898601369,27.6,139.17,139.09,1.001]
[1727898601574,47.3136,139.18,139.09,1.001]
[1727898601779,44.89,139.16,139.09,12.541]
[1727898602065,2.4236,139.18,139.09,12.541]
[1727898602066,3.595,139.1,139.09,1.001]
[1727898602677,44.89,139.16,139.09,1.001]
[1727898602860,6.0061175,139.18,139.09,1.001]
[1727898602861,50.8961175,139.18,139.09,1.001]
[1727898603176,3.5939,139.15,139.09,1.001]
[1727898603364,3.5939,139.15,139.09,12.541]
[1727898603768,3.5936,139.16,139.09,16.12829864]
[1727898604071,49.43881835,139.18,139.11,3.5946]
[1727898604272,49.43881835,139.18,139.09,16.12829864]
[1727898604495,49.43881835,139.18,139.09,1.001]
[1727898604873,3.5939,139.15,139.09,1.001]
[1727898605077,49.43881835,139.18,139.09,1.001]
[1727898605882,3.5941,139.14,139.09,1.001]
[1727898606783,0.12502,139.19,139.09,4.62563448]
[1727898606991,0.12502,139.19,139.11,44.89]
[1727898607191,3.5921,139.22,139.18,3.593]
[1727898607487,45.01502,139.25,139.17,11.52]
[1727898607488,48.55768496,139.25,139.17,11.52]
[1727898608185,44.89,139.22,139.17,11.52]
[1727898608380,44.89,139.24,139.17,11.52]
[1727898610479,44.89,139.22,139.14,1.406]
[1727898611178,3.66768496,139.25,139.14,1.406]
[1727898611179,48.55768496,139.25,139.14,1.406]
[1727898611885,44.89,139.22,139.14,1.406]
[1727898612294,3.5937,139.16,139.13,1.50012]
[1727898613083,45.89,139.24,139.13,1.50012]
[1727898613288,0.12502,139.25,139.13,46.39012]
[1727898613579,3.71632,139.25,139.18,3.5928]
[1727898613778,3.71632,139.25,139.19,11.52]
[1727898613779,3.80053667,139.25,139.19,11.52]
[1727898614383,44.89,139.24,139.13,13.02012]
[1727898615079,44.89,139.22,139.13,1.50012]
[1727898615493,44.89,139.24,139.13,1.50012]
[1727898615695,3.5929,139.19,139.14,3.5939]
[1727898615883,3.5929,139.19,139.13,1.50012]
[1727898616082,44.89,139.24,139.13,1.50012]
[1727898616289,3.5927,139.19,139.14,3.5938]
[1727898616490,44.89,139.22,139.13,1.50012]
[1727898617194,44.89,139.19,139.13,1.50012]
[1727898617393,44.89,139.19,139.13,0.12502]
[1727898617593,3.594,139.14,139.13,0.12502]
[1727898618688,44.89,139.15,139.09,1.001]
[1727898619094,3.6842194,139.14,139.09,1.001]
[1727898619289,3.5948,139.11,139.09,1.001]
[1727898619492,3.6842194,139.14,139.09,1.001]
[1727898619694,44.89,139.15,139.09,1.001]
[1727898619882,44.89,139.17,139.09,1.001]
[1727898620086,3.5831883,139.17,139.09,1.001]
[1727898620397,2.6467,139.18,139.09,1.001]
[1727898620590,2.6467,139.18,139.1,11.52]
[1727898620788,3.57132344,139.17,139.1,11.52]
[1727898620989,2.6467,139.18,139.1,11.52]
[1727898621600,1.3256,139.18,139.1,11.52]
[1727898621897,0.12502,139.19,139.11,46.2187]
[1727898622600,3.5931,139.18,139.12,3.5944]
[1727898623195,0.12502,139.19,139.13,44.89]
[1727898623501,0.12502,139.19,139.11,46.2187]
[1727898623698,0.12502,139.19,139.12,3.5943]
[1727898624192,0.12502,139.19,139.11,46.2187]
[1727898624886,3.5935,139.16,139.12,3.5945]
[1727898625194,3.54569965,139.18,139.11,1.3287]
[1727898625399,0.12502,139.19,139.11,12.8487]
[1727898625995,3.5933,139.17,139.12,3.5945]
[1727898626293,0.12502,139.19,139.11,57.7387]
[1727898626494,0.12502,139.19,139.11,12.8487]
[1727898626700,3.5936,139.16,139.11,16.4434]
[1727898627100,0.12502,139.19,139.11,12.8487]
[1727898627395,0.12502,139.19,139.11,57.7387]
[1727898627789,0.12502,139.19,139.13,44.89]
[1727898627998,0.12502,139.19,139.14,1.3565]
[1727898628300,0.12502,139.25,139.16,44.89]
[1727898628504,0.12502,139.25,139.17,12.8982]
[1727898628695,3.75563814,139.25,139.17,12.8982]
[1727898628890,3.5928,139.19,139.17,1.3782]
[1727898629094,48.64563814,139.25,139.17,1.3782]
[1727898629598,3.5926,139.2,139.17,1.3782]
[1727898629900,48.64563814,139.25,139.17,1.3782]
[1727898630209,0.12502,139.25,139.17,1.3782]
[1727898630392,0.12502,139.25,139.18,44.89]
[1727898630594,3.71642,139.25,139.2,3.5923]
[1727898630800,0.12502,139.25,139.18,44.89]
[1727898631301,0.12502,139.25,139.17,1.3782]
[1727898631302,3.66112636,139.25,139.17,4.9713]
[1727898631506,0.12502,139.25,139.17,1.3782]
[1727898631706,3.71632,139.25,139.2,3.5922]
[1727898631906,0.12502,139.25,139.17,1.3782]
[1727898632707,0.12502,139.25,139.18,44.89]
[1727898633213,0.12502,139.25,139.2,3.5924]
[1727898633413,0.4988,139.23,139.2,11.52]
[1727898633707,4.0906,139.23,139.2,11.52]
[1727898634310,3.5921,139.22,139.2,11.52]
[1727898634812,0.4988,139.23,139.17,1.3782]
[1727898635003,0.4988,139.23,139.17,12.8982]
[1727898635199,0.4988,139.23,139.17,40.4782]
[1727898635411,3.5923,139.21,139.17,40.4782]
[1727898635918,0.4988,139.23,139.17,40.4782]
[1727898636215,3.5925,139.2,139.17,12.8982]
[1727898636714,3.5925,139.2,139.17,16.4913]
[1727898637811,3.593,139.18,139.17,12.8982]
[1727898638134,0.4988,139.23,139.17,12.8982]
[1727898639015,0.4988,139.23,139.17,1.3782]
[1727898639208,0.4988,139.23,139.13,0.12502]
[1727898639209,28.9139,139.22,139.13,11.60502]
[1727898639419,3.594,139.14,139.13,0.12502]
[1727898640115,3.595,139.11,139.09,2.3806]
[1727898640312,0.12502,139.19,139.09,2.3806]
[1727898640510,27.70502,139.19,139.09,1.001]
[1727898640811,3.594,139.14,139.1,1.3796]
[1727898641013,27.70502,139.19,139.1,1.3796]
[1727898641616,0.12502,139.19,139.1,28.9596]
[1727898641817,3.71792,139.19,139.13,3.5941]
[1727898642006,0.12502,139.19,139.1,28.9596]
[1727898642212,0.12502,139.19,139.1,1.3796]
[1727898642521,3.5934,139.17,139.12,3.5943]
[1727898643122,0.12502,139.19,139.1,1.3796]
[1727898643424,3.5937,139.16,139.11,3.5947]
[1727898643723,0.12502,139.19,139.11,3.5947]
[1727898643927,0.12502,139.19,139.1,1.3796]
[1727898644224,3.5934,139.17,139.1,4.9744]
[1727898644515,0.12502,139.19,139.1,1.3796]
[1727898644920,3.5935,139.16,139.12,3.5944]
[1727898645617,3.5935,139.17,139.1,1.3796]
[1727898645821,0.12502,139.19,139.12,3.5944]
[1727898646322,0.12502,139.19,139.1,1.3796]
[1727898646521,0.12502,139.19,139.13,3.5942]
[1727898646718,0.12502,139.19,139.1,1.3796]
[1727898646926,3.5934,139.17,139.12,3.5944]
[1727898647123,3.5934,139.17,139.1,1.3796]
[1727898647419,3.71792,139.19,139.12,3.5943]
[1727898647624,0.12502,139.19,139.1,1.3796]
[1727898648616,3.5932,139.17,139.13,3.5941]
[1727898649010,0.12502,139.19,139.16,3.5934]
[1727898649318,0.12502,139.19,139.17,1.4068]
[1727898649527,0.12502,139.19,139.17,2.7517]
[1727898649721,0.12502,139.19,139.17,6.3448]
[1727898650223,0.12502,139.19,139.17,2.7517]
[1727898650631,0.12502,139.19,139.17,1.4068]
[1727898650632,3.593,139.18,139.17,1.4068]
[1727898651024,0.12502,139.19,139.14,11.48]
[1727898651225,3.5937,139.15,139.14,11.48]
[1727898652418,3.594,139.14,139.13,1.4068]
[1727898654930,0.12502,139.19,139.13,1.4068]
[1727898655134,0.12502,139.19,139.14,3.5938]
[1727898655516,0.12502,139.19,139.13,1.4068]
[1727898656127,0.12502,139.19,139.14,27.58]
[1727898656522,0.12502,139.19,139.15,11.48]
[1727898656523,3.71792,139.19,139.15,11.48]
[1727898656730,0.12502,139.19,139.15,11.48]
[1727898657126,3.5934,139.17,139.15,11.48]
[1727898657428,0.12502,139.19,139.15,11.48]
[1727898657633,3.5932,139.18,139.15,11.48]
[1727898657832,0.12502,139.19,139.15,11.48]
[1727898659026,0.12502,139.19,139.16,3.5933]
[1727898659329,0.12502,139.19,139.15,11.48]
[1727898659529,0.12502,139.19,139.18,3.593]
[1727898659723,0.12502,139.19,139.15,11.48]
[1727898660137,0.12502,139.19,139.17,27.58]
[1727898660327,0.12502,139.25,139.17,27.58]
[1727898660328,0.12502,139.25,139.17,28.9045]
[1727898660524,3.7099452,139.25,139.13,79.15182]
[1727898660745,3.594,139.14,139.13,79.15182]
[1727898660921,27.58,139.23,139.13,1.53182]
[1727898661325,3.594,139.14,139.13,1.53182]
[1727898661532,27.58,139.21,139.13,1.53182]
[1727898661742,1.3899,139.2,139.13,1.53182]
[1727898662035,0.12502,139.25,139.14,27.58]
[1727898662235,0.12502,139.25,139.18,3.5928]
[1727898662538,3.5915,139.24,139.16,42.58851778]
[1727898663040,3.5915,139.24,139.19,3.5926]
[1727898664225,0.12502,139.25,139.18,1.3677]
[1727898664734,3.5926,139.2,139.18,1.3677]
[1727898664940,3.72190275,139.25,139.15,11.48]
[1727898665237,27.58,139.23,139.12,27.58]
[1727898665429,27.58,139.21,139.11,14.2965]
[1727898665629,1.3132,139.2,139.11,14.2965]
[1727898665833,3.593,139.18,139.12,3.5945]
[1727898666039,1.3132,139.2,139.11,14.2965]
[1727898666637,3.5937,139.16,139.11,17.8912]
[1727898666932,3.5937,139.16,139.11,6.4112]
[1727898667140,3.5937,139.16,139.11,2.8165]
[1727898667330,3.5931,139.18,139.11,2.8165]
[1727898667524,1.3132,139.2,139.11,2.8165]
[1727898667731,1.0,139.24,139.12,27.58]
[1727898667932,1.0,139.24,139.14,27.58]
[1727898668238,1.0,139.24,139.16,3.5934]
[1727898668538,3.5926,139.2,139.15,11.42]
[1727898668839,1.0,139.24,139.15,11.42]
[1727898669430,27.58,139.21,139.11,14.2365]
[1727898669835,1.0,139.24,139.12,27.58]
[1727898670036,3.5921,139.22,139.14,27.58]
[1727898670237,1.0,139.24,139.14,27.58]
[1727898670438,1.44942,139.25,139.11,14.2365]
[1727898670636,3.5922,139.21,139.13,29.11182]
[1727898670843,3.65227665,139.24,139.13,29.11182]
[1727898671039,27.58,139.23,139.13,1.53182]
[1727898671245,3.5931,139.18,139.13,1.53182]
[1727898671443,27.58,139.23,139.13,1.53182]
[1727898671951,3.5918,139.23,139.18,3.5928]
[1727898672136,1.44942,139.25,139.18,3.5928]
[1727898672340,3.5917,139.23,139.18,3.5928]
[1727898672647,1.44942,139.25,139.16,11.42]
[1727898672648,1.44942,139.25,139.2,3.5924]
[1727898672941,3.5917,139.23,139.16,39.0]
[1727898673147,1.44942,139.25,139.19,3.5925]
[1727898673448,3.5914,139.24,139.19,3.5925]
[1727898673847,1.44942,139.25,139.2,3.5924]
[1727898674051,3.5916,139.24,139.16,11.42]
[1727898674241,1.44942,139.25,139.16,11.42]
[1727898674441,1.44942,139.25,139.2,3.5923]
[1727898674936,5.04072,139.25,139.19,3.5926]
[1727898675146,5.04072,139.25,139.17,3.59354799]
[1727898675353,0.12502,139.25,139.18,1.33]
[1727898675542,0.12502,139.25,139.2,3.5924]
[1727898675740,0.12502,139.25,139.18,2.7705]
[1727898675945,0.12502,139.25,139.18,30.3505]
[1727898676448,0.12502,139.25,139.2,27.58]
[1727898676653,1.4458,139.34,139.23,27.58]
[1727898676950,19.91362598,139.34,139.23,27.58]
[1727898677151,27.58,139.32,139.21,12.8806]
[1727898677740,27.58,139.3,139.21,1.4606]
[1727898678164,3.71482,139.31,139.25,3.5909]
[1727898678343,0.12502,139.31,139.21,1.4606]
[1727898678845,0.12502,139.31,139.27,3.5905]
[1727898679751,0.12502,139.31,139.26,11.42]
[1727898680054,0.12502,139.31,139.27,28.9201]
[1727898680257,1.0,139.35,139.27,28.9201]
[1727898680451,1.0,139.35,139.29,27.58]
[1727898680753,1.0,139.35,139.33,3.589]
[1727898681644,1.0,139.35,139.31,11.42]
[1727898681847,1.12502,139.37,139.36,3.5883]
[1727898682042,1.0,139.4,139.36,31.14844992]
[1727898682246,1.0,139.42,139.39,27.58]
[1727898682641,1.0,139.44,139.39,31.23461835]
[1727898682853,1.0,139.44,139.4,1.3631]
[1727898683155,1.0,139.44,139.43,3.5865]
[1727898683448,3.5849,139.5,139.42,11.42]
[1727898683658,1.0,139.52,139.48,3.5852]
[1727898683852,1.0,139.52,139.47,11.42]
[1727898684246,1.0,139.52,139.49,3.5849]
[1727898684546,1.0,139.52,139.47,11.42]
[1727898684755,1.0,139.52,139.48,3.5851]
[1727898685058,1.0,139.52,139.47,11.42]
[1727898685350,1.0,139.52,139.51,3.5845]
[1727898685558,1.0,139.54,139.51,27.58]
[1727898685755,1.0,139.62,139.53,27.58]
[1727898686051,1.0,139.62,139.52,11.42]
[1727898686052,1.0,139.62,139.56,27.58]
[1727898686246,1.0,139.62,139.57,11.42]
[1727898686449,1.0,139.62,139.58,27.58]
[1727898687657,1.0,139.62,139.59,3.5824]
[1727898688175,1.0,139.62,139.57,11.42]
[1727898688652,4.5817,139.62,139.57,11.42]
[1727898689250,3.5828,139.58,139.53,44.7]
[1727898689555,1.0,139.62,139.51,11.4]
[1727898689750,4.6608768,139.62,139.51,11.4]
[1727898689951,1.0,139.62,139.51,11.4]
[1727898690255,1.0,139.62,139.53,44.7]
[1727898690460,1.0,139.62,139.55,44.7]
[1727898690652,1.0,139.62,139.57,3.5828]
[1727898690850,3.5834,139.56,139.51,11.4]
[1727898691058,49.2691219,139.62,139.51,11.4]
[1727898691261,45.7,139.62,139.54,3.5836]
[1727898691460,3.5822,139.6,139.51,11.4]
[1727898691857,49.36123521,139.62,139.51,14.9843]
[1727898692165,3.5822,139.6,139.51,11.4]
[1727898692353,3.5822,139.6,139.52,3.584]
[1727898692760,44.7,139.6,139.51,11.4]
[1727898692963,56.1,139.6,139.49,0.12502]
[1727898693167,56.1,139.6,139.5,44.7]
[1727898693168,11.4,139.6,139.5,44.7]
[1727898693463,11.4,139.6,139.52,3.5841]
[1727898693663,56.1,139.6,139.49,0.12502]
[1727898693965,56.1,139.6,139.49,3.70992]
[1727898693966,44.7,139.58,139.49,3.70992]
[1727898694354,44.7,139.58,139.49,0.12502]
[1727898694662,3.5838,139.54,139.49,0.12502]
[1727898694861,44.7,139.58,139.49,0.12502]
[1727898695965,44.7,139.56,139.49,0.12502]
[1727898696562,3.584,139.53,139.49,0.12502]
[1727898697259,3.5837,139.54,139.49,0.12502]
[1727898697473,3.49582377,139.55,139.49,0.12502]
[1727898698564,1.4055,139.59,139.49,0.12502]
[1727898698867,46.1055,139.59,139.49,0.12502]
[1727898700964,3.5838,139.54,139.49,0.12502]
[1727898701156,46.1055,139.59,139.49,0.12502]
[1727898701353,3.5839,139.54,139.49,0.12502]
[1727898701550,46.1055,139.59,139.49,0.12502]
[1727898701763,3.5835,139.55,139.49,0.12502]
[1727898702061,46.1055,139.59,139.49,0.12502]
[1727898702255,3.5834,139.56,139.49,3.70982]
[1727898702452,3.5834,139.56,139.49,0.12502]
[1727898702858,1.4055,139.59,139.51,44.7]
[1727898703160,1.4055,139.59,139.53,44.7]
[1727898703563,1.0,139.62,139.53,48.30215229]
[1727898703865,1.0,139.62,139.53,44.7]
[1727898704065,5.13787681,139.61,139.51,56.06]
[1727898704260,1.52282,139.61,139.51,56.06]
[1727898704661,1.52282,139.61,139.55,44.7]
[1727898704857,0.12502,139.61,139.55,48.19569003]
[1727898705057,0.12502,139.61,139.56,11.36]
[1727898705572,0.12502,139.61,139.58,44.7]
[1727898706370,0.12502,139.61,139.6,3.5821]
[1727898706674,1.0,139.64,139.6,44.7]
[1727898706862,1.0,139.64,139.62,3.5814]
[1727898707169,1.0,139.64,139.61,11.36]
[1727898707470,1.0,139.64,139.63,48.2814]
[1727898707669,1.12502,139.67,139.63,48.2814]
[1727898707670,1.12502,139.67,139.63,48.26769197]
[1727898707878,1.12502,139.67,139.66,3.5806]
[1727898708066,1.12502,139.67,139.65,44.7]
[1727898708873,1.12502,139.67,139.66,3.5806]
[1727898709275,1.12502,139.67,139.63,44.7]
[1727898709666,1.12502,139.67,139.61,56.06]
[1727898709972,1.12502,139.67,139.62,3.5814]
[1727898709973,3.5808,139.66,139.62,3.5814]
[1727898710373,1.12502,139.67,139.61,56.06]
[1727898710678,3.581,139.65,139.61,59.6418]
[1727898710973,3.5813,139.64,139.61,56.04]
[1727898711181,1.12502,139.67,139.61,56.04]
[1727898711679,3.5807,139.66,139.62,3.5815]
[1727898711879,1.12502,139.67,139.61,56.04]
[1727898712268,3.581,139.65,139.61,59.6218]
[1727898712975,4.70542,139.67,139.63,3.5812]
[1727898713874,1.12502,139.67,139.61,56.04]
[1727898714382,1.12502,139.67,139.63,44.7]
[1727898714580,1.12502,139.67,139.63,48.26062889]
[1727898714790,1.12502,139.67,139.65,44.7]
[1727898715377,1.12502,139.67,139.63,44.7]
[1727898715577,1.12502,139.67,139.64,3.5811]
[1727898716083,1.12502,139.67,139.61,56.04]
[1727898716278,1.12502,139.67,139.63,44.7]
[1727898716671,3.5809,139.66,139.63,44.7]
[1727898716876,1.12502,139.67,139.61,44.7]
[1727898717287,3.581,139.65,139.61,48.2819]
[1727898717483,3.581,139.65,139.61,3.5819]
[1727898717691,1.12502,139.67,139.6,11.34]
[1727898717877,1.12502,139.67,139.6,14.9221]
[1727898718389,3.5813,139.64,139.6,14.9221]
[1727898719388,1.12502,139.67,139.57,30.1893]
[1727898719586,1.12502,139.67,139.6,27.5]
[1727898720288,1.12502,139.67,139.57,27.5]
[1727898720482,1.12502,139.67,139.57,38.84]
[1727898720675,1.12502,139.67,139.57,27.5]
[1727898720976,3.5827,139.58,139.55,27.62502]
[1727898721174,27.5,139.65,139.55,0.12502]
[1727898721381,4.0939,139.64,139.55,0.12502]
[1727898721581,3.5828,139.58,139.55,0.12502]
[1727898722081,3.5832,139.56,139.55,0.12502]
[1727898722284,3.52097948,139.6,139.5,27.5]
[1727898722588,11.34,139.63,139.49,0.12502]
[1727898722589,3.5828,139.58,139.49,0.12502]
[1727898722887,31.17632822,139.61,139.5,27.5]
[1727898723087,31.17632822,139.61,139.49,0.12502]
[1727898723289,3.5843,139.52,139.49,0.12502]
[1727898723983,3.584,139.53,139.49,0.12502]
[1727898724188,31.17632822,139.61,139.49,0.12502]
[1727898724482,1.0,139.59,139.49,0.12502]
[1727898725091,3.5845,139.51,139.49,0.12502]
[1727898725477,38.84,139.58,139.49,0.12502]
[1727898725686,3.5843,139.52,139.49,0.12502]
[1727898725992,38.84,139.58,139.49,0.12502]
[1727898725993,3.63063259,139.54,139.49,0.12502]
[1727898726183,38.84,139.58,139.49,0.12502]
[1727898726382,3.5834,139.56,139.49,0.12502]
[1727898726583,2.7336,139.55,139.49,0.12502]
[1727898727091,3.5841,139.53,139.49,0.12502]
[1727898728587,3.5844,139.52,139.49,0.12502]
[1727898728785,3.6342177,139.54,139.43,27.62502]
[1727898729086,2.85862,139.55,139.47,27.5]
[1727898729294,3.54028803,139.54,139.47,27.5]
[1727898729494,2.85862,139.55,139.5,27.5]
[1727898729687,2.85862,139.55,139.54,3.5837]
[1727898729688,0.12502,139.55,139.54,3.5837]
[1727898730092,0.12502,139.55,139.52,27.5]
[1727898730798,3.70862,139.55,139.52,27.5]
[1727898731000,0.12502,139.55,139.52,27.5]
[1727898731290,0.12502,139.55,139.52,31.0841]
[1727898731482,0.12502,139.55,139.51,11.3]
[1727898731684,0.12502,139.55,139.5,27.5]
[1727898732486,3.5841,139.53,139.5,27.5]
[1727898732692,0.12502,139.55,139.48,27.5]
[1727898732883,0.12502,139.55,139.5,27.5]
[1727898733093,0.12502,139.55,139.54,3.5837]
[1727898733288,0.12502,139.55,139.52,27.5]
[1727898733591,0.12502,139.55,139.54,27.5]
[1727898733795,0.12502,139.55,139.54,31.0837]
[1727898734291,0.12502,139.55,139.52,38.8]
[1727898734894,3.70852,139.55,139.52,38.8]
[1727898735093,3.70852,139.55,139.5,27.5]
[1727898735094,0.12502,139.55,139.5,27.5]
[1727898735390,0.12502,139.55,139.48,38.8]
[1727898736190,0.12502,139.55,139.41,85.5547]
[1727898736191,38.92502,139.55,139.44,27.5]
[1727898736386,3.5844,139.52,139.42,3.5866]
[1727898736588,4.0867,139.51,139.43,27.62502]
[1727898737193,7.6713,139.51,139.47,3.5854]
[1727898737395,0.12502,139.55,139.48,27.5]
[1727898737894,0.12502,139.55,139.46,27.5]
[1727898738283,3.584,139.53,139.46,27.5]
[1727898738489,0.12502,139.55,139.46,27.5]
[1727898738887,3.5845,139.51,139.47,3.5854]
[1727898739598,3.501453,139.54,139.46,27.5]
[1727898739789,3.501453,139.54,139.43,0.12502]
[1727898739790,27.5,139.54,139.43,3.71142]
[1727898739988,31.02332587,139.54,139.43,0.12502]
[1727898740194,31.02332587,139.54,139.43,3.71152]
[1727898740195,3.5855,139.47,139.43,3.71152]
[1727898740499,31.02332587,139.54,139.43,0.12502]
[1727898740799,3.5859,139.46,139.43,0.12502]
[1727898741400,3.5863,139.44,139.43,0.12502]
[1727898744099,3.5868,139.42,139.41,1.001]
[1727898744499,4.0531,139.48,139.41,1.001]
[1727898745090,3.5867,139.43,139.41,1.001]
[1727898745300,3.53514544,139.47,139.41,1.001]
[1727898745890,4.0531,139.48,139.41,1.001]
[1727898746296,3.5868,139.42,139.41,1.001]
[1727898746699,3.5118289,139.45,139.39,1.001]
[1727898746898,3.5873,139.4,139.39,1.001]
[1727898747208,38.8,139.47,139.39,1.001]
[1727898747397,42.43415104,139.47,139.39,1.001]
[1727898748096,3.5867,139.43,139.39,1.001]
[1727898748296,42.43415104,139.47,139.39,1.001]
[1727898748297,14.93415104,139.47,139.39,1.001]
[1727898748601,3.5867,139.43,139.39,1.001]
[1727898749098,3.587,139.42,139.39,1.001]
[1727898749296,42.43415104,139.47,139.39,1.001]
[1727898749699,14.93415104,139.47,139.39,1.001]
[1727898749901,14.93415104,139.47,139.39,28.501]
[1727898750291,4.0531,139.48,139.39,28.501]
[1727898750495,4.0531,139.48,139.39,32.17262555]
[1727898750707,4.0531,139.48,139.41,27.5]
[1727898751202,4.0531,139.48,139.43,3.5864]
[1727898751400,4.0531,139.48,139.41,27.5]
[1727898751897,3.5862,139.45,139.41,31.087]
[1727898752101,3.65641838,139.47,139.39,28.501]
[1727898752296,4.0531,139.48,139.39,28.501]
[1727898752705,3.5861,139.45,139.41,3.5868]
[1727898752907,4.0531,139.48,139.4,3.58648884]
[1727898753114,3.5859,139.46,139.42,3.5866]
[1727898753404,3.5859,139.46,139.41,27.5]
[1727898753798,3.5858,139.46,139.42,3.5866]
[1727898754009,4.0531,139.48,139.42,3.5866]